bitfinex/quotes_BTCUSD_20240929
["timestamp","ask_amount","ask_price","bid_price","bid_amount"]
[1727626691971,0.61802279,65869.0,65868.0,0.002828]
[1727626692410,0.53873473,65869.0,65868.0,0.002828]
[1727626693845,0.51493436,65869.0,65868.0,0.002828]
[1727626694292,0.51509752,65869.0,65868.0,0.002828]
[1727626697065,0.53889871,65869.0,65868.0,0.002828]
[1727626697258,0.65160427,65869.0,65868.0,0.002828]
[1727626697777,0.80799233,65869.0,65868.0,0.002828]
[1727626698265,0.67148558,65869.0,65868.0,0.002828]
[1727626698465,0.96963996,65869.0,65868.0,0.002828]
[1727626698682,0.96963996,65869.0,65868.0,0.001828]
[1727626698898,0.71629046,65869.0,65868.0,0.000828]
[1727626699126,1.12321005,65869.0,65868.0,0.000828]
[1727626700016,1.12721005,65869.0,65868.0,0.000828]
[1727626700241,0.96745726,65869.0,65868.0,0.000828]
[1727626700684,0.96745726,65869.0,65867.0,0.00077407]
[1727626700685,0.327018,65868.0,65867.0,0.00077407]
[1727626700902,0.87418565,65868.0,65867.0,0.00077407]
[1727626701163,0.97190752,65868.0,65867.0,0.00077407]
[1727626701377,0.99571075,65868.0,65867.0,0.00077407]
[1727626701829,1.00171075,65868.0,65867.0,0.00077407]
[1727626702044,1.00371075,65868.0,65867.0,0.00077407]
[1727626702267,1.00871075,65868.0,65867.0,0.00077407]
[1727626702485,1.00271075,65868.0,65867.0,0.00077407]
[1727626702705,1.00971075,65868.0,65867.0,0.00077407]
[1727626703182,1.09023391,65868.0,65867.0,0.00077407]
[1727626703853,1.06643068,65868.0,65867.0,0.00077407]
[1727626704756,1.06843068,65868.0,65867.0,0.00077407]
[1727626704999,1.06643068,65868.0,65867.0,0.00077407]
[1727626706855,1.09223388,65868.0,65867.0,0.00077407]
[1727626707545,1.09023388,65868.0,65867.0,0.00077407]
[1727626708005,1.00971072,65868.0,65867.0,0.00077407]
[1727626708227,1.087987,65868.0,65867.0,0.00077407]
[1727626710688,0.249337,65860.0,65859.0,0.001654]
[1727626710912,0.64500566,65860.0,65859.0,0.001654]
[1727626711128,0.65782923,65860.0,65859.0,0.001654]
[1727626712256,0.57730607,65860.0,65859.0,0.001654]
[1727626712472,0.65782923,65860.0,65859.0,0.001654]
[1727626713220,0.48144581,65860.0,65859.0,0.001654]
[1727626713440,0.50127988,65860.0,65859.0,0.001654]
[1727626713665,0.34489182,65860.0,65859.0,0.001654]
[1727626713888,0.42541498,65860.0,65859.0,0.001654]
[1727626714108,0.60551498,65860.0,65859.0,0.001654]
[1727626714552,0.60351498,65860.0,65859.0,0.001654]
[1727626714770,0.75790304,65860.0,65859.0,0.001654]
[1727626714986,1.01020072,65860.0,65859.0,0.001654]
[1727626715204,1.01320072,65860.0,65859.0,0.001654]
[1727626715420,1.01020072,65860.0,65859.0,0.001654]
[1727626715853,1.01120072,65860.0,65859.0,0.001654]
[1727626716070,1.00720072,65860.0,65859.0,0.001654]
[1727626716532,1.01120072,65860.0,65859.0,0.001654]
[1727626717413,1.01520072,65860.0,65859.0,0.001654]
[1727626717631,1.01545314,65860.0,65859.0,0.001654]
[1727626717884,1.00745314,65860.0,65859.0,0.001654]
[1727626718105,0.86106508,65860.0,65859.0,0.001654]
[1727626718544,0.61152596,65860.0,65859.0,0.001654]
[1727626719528,0.60652596,65860.0,65859.0,0.001654]
[1727626720025,0.61252596,65860.0,65859.0,0.001654]
[1727626720538,0.60752596,65860.0,65859.0,0.001654]
[1727626720791,0.61352596,65860.0,65859.0,0.001654]
[1727626721027,0.76991402,65860.0,65859.0,0.001654]
[1727626721265,1.01345314,65860.0,65859.0,0.001654]
[1727626722203,1.01945314,65860.0,65859.0,0.001654]
[1727626723714,1.01965664,65860.0,65859.0,0.001654]
[1727626724232,0.86326858,65860.0,65859.0,0.001654]
[1727626724451,0.61361075,65860.0,65859.0,0.001654]
[1727626726335,0.65841173,65860.0,65859.0,0.001654]
[1727626736468,0.65096633,65860.0,65859.0,0.001654]
[1727626736697,0.49728857,65860.0,65859.0,0.001654]
[1727626736932,0.49732782,65860.0,65859.0,0.001654]
[1727626738356,0.65108913,65860.0,65859.0,0.001654]
[1727626740859,0.83128187,65860.0,65859.0,0.001654]
[1727626741059,0.92460659,65860.0,65859.0,0.001654]
[1727626741328,0.67489381,65860.0,65859.0,0.001654]
[1727626742465,0.77084528,65860.0,65859.0,0.001654]
[1727626742750,0.5211325,65860.0,65859.0,0.001654]
[1727626743909,0.49732782,65860.0,65859.0,0.001654]
[1727626744347,0.39982782,65860.0,65859.0,0.001654]
[1727626747138,0.42363161,65860.0,65859.0,0.001654]
[1727626749742,0.42391364,65860.0,65859.0,0.001654]
[1727626750219,0.55408682,65860.0,65859.0,0.001654]
[1727626750439,0.40010985,65860.0,65859.0,0.001654]
[1727626750666,0.35530887,65860.0,65859.0,0.001654]
[1727626753914,0.20347187,65860.0,65859.0,0.001654]
[1727626754327,0.2038866,65860.0,65859.0,0.001654]
[1727626754606,0.2038866,65860.0,65859.0,0.153493]
[1727626754832,0.2038866,65860.0,65859.0,0.001654]
[1727626756645,0.3557236,65860.0,65859.0,0.001654]
[1727626758278,0.34066096,65860.0,65859.0,0.001654]
[1727626758508,0.49249796,65860.0,65859.0,0.001654]
[1727626759261,0.49263264,65860.0,65859.0,0.001654]
[1727626762745,0.34079564,65860.0,65859.0,0.001654]
[1727626762976,0.49263264,65860.0,65859.0,0.001654]
[1727626763654,0.34079564,65860.0,65859.0,0.001654]
[1727626763904,0.49263264,65860.0,65859.0,0.001654]
[1727626764142,0.49255373,65860.0,65859.0,0.001654]
[1727626764486,0.34071673,65860.0,65859.0,0.153493]
[1727626764584,0.20397715,65860.0,65859.0,0.001654]
[1727626768539,0.20397715,65860.0,65859.0,0.153493]
[1727626768764,0.20397718,65860.0,65859.0,0.153493]
[1727626771918,0.22777822,65860.0,65859.0,0.153493]
[1727626773141,0.31788723,65860.0,65859.0,0.153493]
[1727626773362,0.31188723,65860.0,65859.0,0.153493]
[1727626773595,0.31424324,65860.0,65859.0,0.153493]
[1727626774069,0.31224324,65860.0,65859.0,0.153493]
[1727626774292,0.30724324,65860.0,65859.0,0.153493]
[1727626774520,0.31324324,65860.0,65859.0,0.153493]
[1727626774904,0.30724324,65860.0,65859.0,0.153493]
[1727626775339,0.30824324,65860.0,65859.0,0.153493]
[1727626776464,0.194339,65860.0,65859.0,0.153493]
[1727626776719,0.20210017,65860.0,65859.0,0.153493]
[1727626778280,0.2022596,65860.0,65859.0,0.153493]
[1727626779283,0.11369306,65860.0,65859.0,0.153493]
[1727626779496,0.27278318,65860.0,65859.0,0.153493]
[1727626779661,0.293366,65860.0,65859.0,0.153493]
[1727626780161,0.02258282,65860.0,65859.0,0.153493]
[1727626780391,0.18172668,65860.0,65859.0,0.153493]
[1727626780616,0.002,65860.0,65859.0,0.153493]
[1727626781065,0.07032895,65860.0,65859.0,0.153493]
[1727626781316,0.09091003,65860.0,65859.0,0.153493]
[1727626783057,0.09090724,65860.0,65859.0,0.153493]
[1727626783763,0.0909065,65860.0,65859.0,0.153493]
[1727626788104,0.09090716,65860.0,65859.0,0.153493]
[1727626792795,0.09091877,65860.0,65859.0,0.153493]
[1727626793240,0.02258108,65860.0,65859.0,0.153493]
[1727626793486,0.002,65860.0,65859.0,0.153493]
[1727626794134,0.02256166,65860.0,65859.0,0.153493]
[1727626794343,0.20240315,65860.0,65859.0,0.153493]
[1727626795437,0.29352007,65860.0,65859.0,0.153493]
[1727626797762,0.29356826,65860.0,65859.0,0.153493]
[1727626798676,0.20242192,65860.0,65859.0,0.153493]
[1727626800530,0.29622192,65860.0,65859.0,0.153493]
[1727626801245,0.29634289,65860.0,65859.0,0.153493]
[1727626802960,0.66015158,65860.0,65859.0,0.001654]
[1727626803201,0.42779142,65860.0,65859.0,0.001654]
[1727626803397,0.37854289,65860.0,65859.0,0.001654]
[1727626803665,0.53037989,65860.0,65859.0,0.001654]
[1727626805800,0.52999784,65860.0,65859.0,0.001654]
[1727626809311,0.66675355,65860.0,65859.0,0.001654]
[1727626809780,0.52999784,65860.0,65859.0,0.001654]
[1727626811254,0.52899784,65860.0,65859.0,0.001654]
[1727626811711,0.53099784,65860.0,65859.0,0.001654]
[1727626812192,0.52999784,65860.0,65859.0,0.001654]
[1727626813343,0.53199784,65860.0,65859.0,0.001654]
[1727626815465,0.53172238,65860.0,65859.0,0.001654]
[1727626816406,0.66847518,65860.0,65859.0,0.001654]
[1727626823849,0.86329875,65860.0,65859.0,0.001654]
[1727626824350,0.76610267,65860.0,65859.0,0.001654]
[1727626824589,0.61224554,65860.0,65859.0,0.001654]
[1727626824833,0.58930988,65860.0,65859.0,0.001654]
[1727626825079,0.96652657,65860.0,65859.0,0.001654]
[1727626825313,0.81271907,65860.0,65859.0,0.001654]
[1727626825540,0.96652657,65860.0,65859.0,0.001654]
[1727626825769,1.2165579,65860.0,65859.0,0.001654]
[1727626825968,1.0627504,65860.0,65859.0,0.001654]
[1727626826202,1.2165579,65860.0,65859.0,0.001654]
[1727626826467,1.0627504,65860.0,65859.0,0.001654]
[1727626827442,1.01793501,65860.0,65859.0,0.001654]
[1727626828124,1.04174056,65860.0,65859.0,0.001654]
[1727626828366,1.08654552,65860.0,65859.0,0.001654]
[1727626828605,1.01793501,65860.0,65859.0,0.001654]
[1727626829325,1.21654518,65860.0,65859.0,0.001654]
[1727626829564,1.03680546,65860.0,65859.0,0.001654]
[1727626829795,0.96567071,65860.0,65859.0,0.001654]
[1727626830029,0.81194942,65860.0,65859.0,0.001654]
[1727626830485,1.01611837,65860.0,65859.0,0.001654]
[1727626830700,1.0609174,65860.0,65859.0,0.001654]
[1727626830916,1.01611837,65860.0,65859.0,0.001654]
[1727626831145,1.0609173,65860.0,65859.0,0.001654]
[1727626831366,1.01611837,65860.0,65859.0,0.001654]
[1727626832098,1.06091768,65860.0,65859.0,0.001654]
[1727626832556,1.01611837,65860.0,65859.0,0.001654]
[1727626833041,1.06091903,65860.0,65859.0,0.001654]
[1727626833912,0.81194741,65860.0,65859.0,0.001654]
[1727626833915,0.88511454,65860.0,65859.0,0.001654]
[1727626834136,1.06091903,65860.0,65859.0,0.001654]
[1727626834383,1.06095896,65860.0,65859.0,0.001654]
[1727626834614,0.9045709,65860.0,65859.0,0.001654]
[1727626835082,0.65557599,65860.0,65859.0,0.001654]
[1727626837128,0.9045709,65860.0,65859.0,0.001654]
[1727626837612,0.65557599,65860.0,65859.0,0.001654]
[1727626838081,0.57505283,65860.0,65859.0,0.001654]
[1727626838313,0.65557599,65860.0,65859.0,0.001654]
[1727626839262,0.65565166,65860.0,65859.0,0.001654]
[1727626844160,0.65578969,65860.0,65859.0,0.001654]
[1727626845971,0.80952825,65860.0,65859.0,0.001654]
[1727626846202,0.67959417,65860.0,65859.0,0.001654]
[1727626846482,0.92888826,65860.0,65859.0,0.001654]
[1727626847168,1.08262682,65860.0,65859.0,0.001654]
[1727626848304,0.92888826,65860.0,65859.0,0.001654]
[1727626848747,0.80958762,65860.0,65859.0,0.001654]
[1727626849018,0.80958508,65860.0,65859.0,0.001654]
[1727626850428,0.90508254,65860.0,65859.0,0.001654]
[1727626850652,0.65578917,65860.0,65859.0,0.001654]
[1727626851782,0.67959355,65860.0,65859.0,0.001654]
[1727626851997,0.92888692,65860.0,65859.0,0.001654]
[1727626852262,0.90508254,65860.0,65859.0,0.001654]
[1727626852709,0.65578917,65860.0,65859.0,0.001654]
[1727626853417,0.80703012,65860.0,65859.0,0.001654]
[1727626853644,0.87815173,65860.0,65859.0,0.001654]
[1727626853867,1.05614337,65860.0,65859.0,0.001654]
[1727626854319,0.90490242,65860.0,65859.0,0.001654]
[1727626855693,0.65571412,65860.0,65859.0,0.001654]
[1727626858524,0.6558405,65860.0,65859.0,0.001654]
[1727626859676,0.67964488,65860.0,65859.0,0.001654]
[1727626859917,0.92901011,65860.0,65859.0,0.001654]
[1727626860595,1.08284382,65860.0,65859.0,0.001654]
[1727626861746,0.84848695,65860.0,65859.0,0.001654]
[1727626861992,0.92901011,65860.0,65859.0,0.001654]
[1727626862924,0.90520573,65860.0,65859.0,0.001654]
[1727626863167,0.6558405,65860.0,65859.0,0.001654]
[1727626866280,0.6796446,65860.0,65859.0,0.001654]
[1727626866732,0.67839665,65860.0,65859.0,0.001654]
[1727626866990,0.92601475,65860.0,65859.0,0.001654]
[1727626867217,0.90221065,65860.0,65859.0,0.001654]
[1727626867448,0.65459255,65860.0,65859.0,0.001654]
[1727626870444,0.49186939,65860.0,65859.0,0.001654]
[1727626870680,0.39806939,65860.0,65859.0,0.001654]
[1727626870910,0.55208446,65860.0,65859.0,0.001654]
[1727626871577,0.35393007,65860.0,65859.0,0.001654]
[1727626871797,0.37773314,65860.0,65859.0,0.001654]
[1727626872994,0.35393007,65860.0,65859.0,0.001654]
[1727626878929,0.20209307,65860.0,65859.0,0.001654]
[1727626879133,0.35393007,65860.0,65859.0,0.001654]
[1727626879617,0.20209307,65860.0,65859.0,0.001654]
[1727626879811,0.37773263,65860.0,65859.0,0.001654]
[1727626880982,0.22589563,65860.0,65859.0,0.001654]
[1727626881190,0.22592016,65860.0,65859.0,0.001654]
[1727626881622,0.2021176,65860.0,65859.0,0.001654]
[1727626881970,0.3539546,65860.0,65859.0,0.001654]
[1727626882564,0.2021176,65860.0,65859.0,0.001654]
[1727626882797,0.3539546,65860.0,65859.0,0.001654]
[1727626886025,0.35380097,65860.0,65859.0,0.001654]
[1727626894338,0.52772413,65860.0,65859.0,0.001654]
[1727626895698,0.44651806,65860.0,65859.0,0.001654]
[1727626900212,0.47032098,65860.0,65859.0,0.001654]
[1727626900440,0.47029468,65860.0,65859.0,0.001654]
[1727626903406,0.44649176,65860.0,65859.0,0.001654]
[1727626904984,0.6938621,65860.0,65859.0,0.001654]
[1727626905448,0.44649176,65860.0,65859.0,0.001654]
[1727626905927,0.49135131,65860.0,65859.0,0.001654]
[1727626906809,0.73872165,65860.0,65859.0,0.001654]
[1727626907032,0.49135131,65860.0,65859.0,0.001654]
[1727626908786,0.44649176,65860.0,65859.0,0.001654]
[1727626909021,0.49133546,65860.0,65859.0,0.001654]
[1727626910168,0.51516772,65860.0,65859.0,0.001654]
[1727626913406,0.49136468,65860.0,65859.0,0.001654]
[1727626913837,0.44652098,65860.0,65859.0,0.001654]
[1727626914264,0.49136736,65860.0,65859.0,0.001654]
[1727626916318,0.81107858,65860.0,65859.0,0.001654]
[1727626916552,1.21227676,65860.0,65859.0,0.001654]
[1727626916780,1.0558887,65860.0,65859.0,0.001654]
[1727626917248,0.80847745,65860.0,65859.0,0.001654]
[1727626918348,0.72795429,65860.0,65859.0,0.001654]
[1727626919941,0.72834061,65860.0,65859.0,0.001654]
[1727626922435,0.75214394,65860.0,65859.0,0.001654]
[1727626922879,0.55335681,65860.0,65859.0,0.001654]
[1727626923070,0.75215559,65860.0,65859.0,0.001654]
[1727626928016,0.75213505,65860.0,65859.0,0.001654]
[1727626928417,0.99978299,65860.0,65859.0,0.001654]
[1727626928902,0.75213505,65860.0,65859.0,0.001654]
[1727626932015,0.72833172,65860.0,65859.0,0.001654]
[1727626933523,0.57434872,65860.0,65859.0,0.001654]
[1727626933735,0.72833172,65860.0,65859.0,0.001654]
[1727626933967,0.57434872,65860.0,65859.0,0.001654]
[1727626934167,0.72833172,65860.0,65859.0,0.001654]
[1727626936499,0.52949069,65860.0,65859.0,0.001654]
[1727626936940,0.44669069,65860.0,65859.0,0.001654]
[1727626937648,0.44651639,65860.0,65859.0,0.001654]
[1727626939307,0.35311639,65860.0,65859.0,0.001654]
[1727626939783,0.37691906,65860.0,65859.0,0.001654]
[1727626942036,0.36192011,65860.0,65859.0,0.23401616]
[1727626942273,0.20127939,65860.0,65859.0,0.23401616]
[1727626942719,0.19927939,65860.0,65859.0,0.23401616]
[1727626943202,0.19927939,65860.0,65859.0,0.23501616]
[1727626943423,0.09092875,65860.0,65859.0,0.23501616]
[1727626943657,0.09092796,65860.0,65859.0,0.23501616]
[1727626943903,0.08892796,65860.0,65859.0,0.23501616]
[1727626944430,0.08892796,65860.0,65859.0,0.41101616]
[1727626944431,0.06614157,65860.0,65859.0,0.41101616]
[1727626944679,0.02056166,65860.0,65859.0,0.5653041]
[1727626944918,0.02056166,65860.0,65859.0,0.5663041]
[1727626945142,0.001,65860.0,65859.0,0.5653041]
[1727626945387,0.001,65860.0,65859.0,0.71370731]
[1727626945630,0.001,65860.0,65859.0,0.71470731]
[1727626945850,0.04557991,65865.0,65864.0,0.303655]
[1727626946093,0.04557991,65865.0,65864.0,0.455483]
[1727626946328,0.06413685,65865.0,65864.0,0.455483]
[1727626946542,0.01855694,65865.0,65864.0,0.455483]
[1727626946758,0.001656,65867.0,65866.0,0.151823]
[1727626947264,0.02020806,65867.0,65866.0,0.151823]
[1727626947914,0.001656,65867.0,65866.0,0.151823]
[1727626948374,0.002656,65867.0,65866.0,0.15585916]
[1727626948855,0.003656,65867.0,65866.0,0.28819559]
[1727626950480,0.003656,65867.0,65866.0,0.15585916]
[1727626952100,0.003656,65867.0,65866.0,0.15585901]
[1727626952332,0.003656,65867.0,65866.0,0.31114695]
[1727626952559,0.003656,65867.0,65866.0,0.48714695]
[1727626952791,0.003656,65867.0,65866.0,0.48411094]
[1727626953025,0.003656,65867.0,65866.0,0.63775397]
[1727626954906,0.003656,65867.0,65866.0,0.66575397]
[1727626955116,0.003656,65867.0,65866.0,0.76575397]
[1727626955819,0.001656,65867.0,65866.0,0.76475397]
[1727626956266,0.002656,65867.0,65866.0,0.76575397]
[1727626956493,0.001656,65867.0,65866.0,0.76475397]
[1727626956957,0.001656,65867.0,65866.0,0.76675397]
[1727626957172,0.001656,65867.0,65866.0,0.77275397]
[1727626957173,0.002656,65867.0,65866.0,0.77275397]
[1727626957630,0.001656,65867.0,65866.0,0.76675397]
[1727626957879,0.002656,65867.0,65866.0,0.77675397]
[1727626958102,0.003656,65867.0,65866.0,0.78275397]
[1727626958322,0.002656,65867.0,65866.0,0.77275397]
[1727626958556,0.002656,65867.0,65866.0,0.78075397]
[1727626958784,0.003656,65867.0,65866.0,0.77875397]
[1727626959215,0.004656,65867.0,65866.0,0.79275397]
[1727626960226,0.003656,65867.0,65866.0,0.77875397]
[1727626960731,0.004656,65867.0,65866.0,0.78475397]
[1727626970362,0.004656,65867.0,65866.0,0.78640797]
[1727626973556,0.004656,65867.0,65866.0,0.61040797]
[1727626973982,0.004656,65867.0,65866.0,0.60540797]
[1727626974189,0.004656,65867.0,65866.0,0.61040797]
[1727626974855,0.004656,65867.0,65866.0,0.60540797]
[1727626975062,0.004656,65867.0,65866.0,0.61040797]
[1727626975492,0.004656,65867.0,65866.0,0.60540797]
[1727626975712,0.004656,65867.0,65866.0,0.61040797]
[1727626976419,0.004656,65867.0,65866.0,0.60540797]
[1727626976640,0.004656,65867.0,65866.0,0.61040797]
[1727626976865,0.004656,65867.0,65866.0,0.60540797]
[1727626977327,0.004656,65867.0,65866.0,0.61040797]
[1727626977966,0.004656,65867.0,65866.0,0.60540797]
[1727626978193,0.004656,65867.0,65866.0,0.61040797]
[1727626978616,0.004656,65867.0,65866.0,0.60540797]
[1727626978813,0.004656,65867.0,65866.0,0.61040797]
[1727626979464,0.004656,65867.0,65866.0,0.60540797]
[1727626995971,0.004656,65867.0,65866.0,0.273477]
[1727626996189,0.183656,65867.0,65866.0,0.273477]
[1727626996613,0.20108398,65867.0,65866.0,0.273477]
[1727626996843,0.20008398,65867.0,65866.0,0.267477]
[1727626997280,0.20108398,65867.0,65866.0,0.296477]
[1727626997736,0.19808398,65867.0,65866.0,0.276477]
[1727626998212,0.19908398,65867.0,65866.0,0.285477]
[1727626998456,0.19908398,65867.0,65866.0,0.276477]
[1727626998457,0.19808398,65867.0,65866.0,0.276477]
[1727626998655,0.19908398,65867.0,65866.0,0.285477]
[1727626999089,0.19908398,65867.0,65866.0,0.185477]
[1727626999749,0.20008398,65867.0,65866.0,0.190477]
[1727627000240,0.24565228,65867.0,65866.0,0.190477]
[1727627000459,0.20008398,65867.0,65866.0,0.190477]
[1727627000680,0.26843644,65867.0,65866.0,0.190477]
[1727627002274,0.20008398,65867.0,65866.0,0.190477]
[1727627002497,0.26841478,65867.0,65866.0,0.190477]
[1727627002720,0.182656,65867.0,65866.0,0.190477]
[1727627002943,0.20008355,65867.0,65866.0,0.190477]
[1727627004543,0.24562527,65867.0,65866.0,0.190477]
[1727627005224,0.20008355,65867.0,65866.0,0.190477]
[1727627007443,0.20008355,65867.0,65866.0,0.167477]
[1727627008330,0.24562527,65867.0,65866.0,0.167477]
[1727627008812,0.20008355,65867.0,65866.0,0.167477]
[1727627009519,0.24562527,65867.0,65866.0,0.167477]
[1727627009737,0.20008355,65867.0,65866.0,0.167477]
[1727627010180,0.24562527,65867.0,65866.0,0.167477]
[1727627016480,0.20008355,65867.0,65866.0,0.167477]
[1727627016746,0.24562892,65867.0,65866.0,0.167477]
[1727627018472,0.20008355,65867.0,65866.0,0.167477]
[1727627025478,0.26841648,65867.0,65866.0,0.167477]
[1727627026582,0.2684176,65867.0,65866.0,0.167477]
[1727627030558,0.46919689,65867.0,65866.0,0.015654]
[1727627030746,0.37808482,65867.0,65866.0,0.015654]
[1727627031246,0.49197491,65867.0,65866.0,0.015654]
[1727627031939,0.49197491,65867.0,65866.0,0.167477]
[1727627032160,0.49197491,65867.0,65866.0,0.015654]
[1727627032592,0.37808482,65867.0,65866.0,0.015654]
[1727627032805,0.37808482,65867.0,65866.0,0.167477]
[1727627032993,0.37808482,65867.0,65866.0,0.015654]
[1727627036119,0.37752068,65867.0,65866.0,0.015654]
[1727627037916,0.37752068,65867.0,65866.0,0.167477]
[1727627038145,0.37752068,65867.0,65866.0,0.015654]
[1727627039457,0.52934168,65867.0,65866.0,0.015654]
[1727627040815,0.52928149,65867.0,65866.0,0.015654]
[1727627041050,0.37746049,65867.0,65866.0,0.015654]
[1727627041488,0.52928149,65867.0,65866.0,0.015654]
[1727627042126,0.37746049,65867.0,65866.0,0.015654]
[1727627042790,0.52928149,65867.0,65866.0,0.015654]
[1727627044106,0.37746049,65867.0,65866.0,0.015654]
[1727627044789,0.52928149,65867.0,65866.0,0.015654]
[1727627044999,0.37746049,65867.0,65866.0,0.015654]
[1727627045226,0.52928149,65867.0,65866.0,0.015654]
[1727627045856,0.37746049,65867.0,65866.0,0.015654]
[1727627046774,0.52928149,65867.0,65866.0,0.015654]
[1727627048720,0.37746049,65867.0,65866.0,0.015654]
[1727627048956,0.67433938,65867.0,65866.0,0.015654]
[1727627049632,0.52928149,65867.0,65866.0,0.015654]
[1727627049845,0.66601293,65867.0,65866.0,0.015654]
[1727627058275,0.6658302,65867.0,65866.0,0.015654]
[1727627058499,0.52909876,65867.0,65866.0,0.015654]
[1727627063256,0.37727776,65867.0,65866.0,0.015654]
[1727627063464,0.52909876,65867.0,65866.0,0.015654]
[1727627063671,0.37727776,65867.0,65866.0,0.015654]
[1727627063885,0.52909876,65867.0,65866.0,0.015654]
[1727627064335,0.37727776,65867.0,65866.0,0.015654]
[1727627064543,0.52909876,65867.0,65866.0,0.015654]
[1727627064757,0.37727776,65867.0,65866.0,0.015654]
[1727627064966,0.52909876,65867.0,65866.0,0.015654]
[1727627066463,0.37727776,65867.0,65866.0,0.015654]
[1727627066708,0.6658302,65867.0,65866.0,0.015654]
[1727627066925,0.5140092,65867.0,65866.0,0.015654]
[1727627067156,0.52909876,65867.0,65866.0,0.015654]
[1727627067608,0.37727776,65867.0,65866.0,0.015654]
[1727627068052,0.37710579,65867.0,65866.0,0.015654]
[1727627068273,0.37710579,65867.0,65866.0,0.167477]
[1727627068477,0.37710579,65867.0,65866.0,0.015654]
[1727627071169,0.37710579,65867.0,65866.0,0.167477]
[1727627071386,0.52892679,65867.0,65866.0,0.015654]
[1727627071836,0.66564813,65867.0,65866.0,0.015654]
[1727627072260,0.37710579,65867.0,65866.0,0.015654]
[1727627072700,0.51396924,65867.0,65866.0,0.015654]
[1727627073144,0.37720723,65867.0,65866.0,0.015654]
[1727627073590,0.51396924,65867.0,65866.0,0.015654]
[1727627075558,0.37720723,65867.0,65866.0,0.015654]
[1727627075809,0.5140068,65867.0,65866.0,0.167477]
[1727627076034,0.5140068,65867.0,65866.0,0.015654]
[1727627076731,0.5140068,65867.0,65866.0,0.167477]
[1727627076946,0.5140068,65867.0,65866.0,0.015654]
[1727627077459,0.3350068,65867.0,65866.0,0.167477]
[1727627077681,0.19820723,65867.0,65866.0,0.167477]
[1727627082583,0.19820723,65867.0,65866.0,0.015654]
[1727627083570,0.19820723,65867.0,65866.0,0.47614572]
[1727627083805,0.19820723,65867.0,65866.0,0.167477]
[1727627083806,0.13490876,65867.0,65866.0,0.167477]
[1727627084042,0.02090082,65867.0,65866.0,0.167477]
[1727627084521,0.19820723,65867.0,65866.0,0.167477]
[1727627084768,0.31317784,65867.0,65866.0,0.167477]
[1727627085032,0.31317887,65867.0,65866.0,0.167477]
[1727627085520,0.199183,65867.0,65866.0,0.167477]
[1727627087118,0.19897044,65867.0,65866.0,0.167477]
[1727627089600,0.29247044,65867.0,65866.0,0.167477]
[1727627091866,0.2924417,65867.0,65866.0,0.167477]
[1727627100957,0.29265402,65867.0,65866.0,0.167477]
[1727627102768,0.44447502,65867.0,65866.0,0.015654]
[1727627102994,0.52557502,65867.0,65866.0,0.015654]
[1727627104168,0.72425026,65867.0,65866.0,0.015654]
[1727627104397,0.57040588,65867.0,65866.0,0.015654]
[1727627104619,0.72423497,65867.0,65866.0,0.015654]
[1727627104850,0.72323497,65867.0,65866.0,0.010654]
[1727627105083,0.56840588,65867.0,65866.0,0.001654]
[1727627105361,0.56940588,65867.0,65866.0,0.006654]
[1727627105577,0.57040588,65867.0,65866.0,0.013654]
[1727627105807,0.56940588,65867.0,65866.0,0.006654]
[1727627106027,0.57240588,65867.0,65866.0,0.006654]
[1727627106485,0.57140588,65867.0,65866.0,0.001654]
[1727627106957,0.57440588,65867.0,65866.0,0.001654]
[1727627107880,0.52957502,65867.0,65866.0,0.001654]
[1727627108090,0.72813688,65867.0,65866.0,0.001654]
[1727627108521,0.68334163,65867.0,65866.0,0.001654]
[1727627109213,0.52957502,65867.0,65866.0,0.001654]
[1727627109864,0.68334163,65867.0,65866.0,0.001654]
[1727627110292,0.70714379,65867.0,65866.0,0.001654]
[1727627111346,0.55337718,65867.0,65866.0,0.001654]
[1727627112238,0.75191581,65867.0,65866.0,0.001654]
[1727627112464,0.5981492,65867.0,65866.0,0.001654]
[1727627112923,0.57434704,65867.0,65866.0,0.001654]
[1727627113440,0.72551591,65867.0,65866.0,0.001654]
[1727627114068,0.7238362,65867.0,65866.0,0.001654]
[1727627115146,0.87748655,65867.0,65866.0,0.001654]
[1727627115851,0.57266733,65867.0,65866.0,0.001654]
[1727627116491,0.72629573,65867.0,65866.0,0.001654]
[1727627118417,0.68152371,65867.0,65866.0,0.001654]
[1727627119311,0.52789531,65867.0,65866.0,0.001654]
[1727627120621,0.59643931,65867.0,65866.0,0.001654]
[1727627121096,0.55169803,65867.0,65866.0,0.001654]
[1727627122867,0.52789531,65867.0,65866.0,0.001654]
[1727627123521,0.52770115,65867.0,65866.0,0.001654]
[1727627124373,0.57244159,65867.0,65866.0,0.001654]
[1727627124578,0.52770115,65867.0,65866.0,0.001654]
[1727627128558,0.57242124,65867.0,65866.0,0.001654]
[1727627130536,0.59622401,65867.0,65866.0,0.001654]
[1727627132928,0.57242124,65867.0,65866.0,0.001654]
[1727627138047,0.57259113,65867.0,65866.0,0.001654]
[1727627141597,0.72617021,65867.0,65866.0,0.001654]
[1727627142971,0.7264667,65867.0,65866.0,0.001654]
[1727627143408,0.57280728,65867.0,65866.0,0.001654]
[1727627144951,0.57287092,65867.0,65866.0,0.001654]
[1727627148570,0.57306367,65867.0,65866.0,0.001654]
[1727627156780,0.303666,65862.0,65860.0,0.22814556]
[1727627157022,0.3288309,65861.0,65860.0,0.22814556]
[1727627157250,0.19335853,65861.0,65855.0,0.151848]
[1727627157459,0.15184,65859.0,65855.0,0.151848]
[1727627157696,0.1769969,65858.0,65855.0,0.151848]
[1727627157929,0.19335566,65858.0,65854.0,0.151849]
[1727627158199,0.1769969,65857.0,65854.0,0.151849]
[1727627158435,0.1769969,65856.0,65854.0,0.151849]
[1727627158665,0.1769969,65855.0,65854.0,0.151849]
[1727627159155,0.19335279,65855.0,65854.0,0.151849]
[1727627159404,0.21715596,65855.0,65854.0,0.151849]
[1727627160138,0.21815596,65855.0,65854.0,0.159849]
[1727627160894,0.21915596,65855.0,65854.0,0.164849]
[1727627161141,0.19535279,65855.0,65854.0,0.164849]
[1727627163222,0.19535279,65855.0,65854.0,0.013]
[1727627163445,0.30939142,65855.0,65854.0,0.013]
[1727627163900,0.19535279,65855.0,65854.0,0.013]
[1727627164788,0.21915614,65855.0,65854.0,0.013]